fUST/lending_fUST_20250513
["ID","MTS","AMOUNT","RATE_DAILY","PERIOD"]
[360881058,1747097446339,-400.0,0.00019178,2]
[360881059,1747097446348,-429.77,0.00019178,2]
[360881060,1747097446357,-400.0,0.00019178,2]
[360881062,1747097446367,-400.0,0.00019178,2]
[360881064,1747097446377,-400.0,0.00019178,2]
[360881066,1747097446386,-400.0,0.00019178,2]
[360881068,1747097446395,-203.29037544,0.00019178,2]
[360881070,1747097446404,-151.0,0.00019178,2]
[360881072,1747097446413,-400.0,0.00019178,2]
[360881073,1747097446422,-400.0,0.00019178,2]
[360881075,1747097446432,-2130.09,0.00019178,2]
[360881078,1747097446441,-400.0,0.00019178,2]
[360881080,1747097446450,-151.0,0.00019178,2]
[360881082,1747097446459,-400.0,0.00019178,2]
[360881084,1747097446469,-400.0,0.00019178,2]
[360881086,1747097446478,-400.0,0.00019178,2]
[360881088,1747097446487,-400.0,0.00019178,2]
[360881090,1747097446497,-519.09,0.00019178,2]
[360881092,1747097446506,-400.0,0.00019178,2]
[360881094,1747097446515,-419.05,0.00019178,2]
[360881096,1747097446524,-400.0,0.00019178,2]
[360881098,1747097446533,-400.0,0.00019178,2]
[360881100,1747097446542,-229.669725,0.00019178,2]
[360881102,1747097446552,-400.0,0.00019178,2]
[360881104,1747097446561,-488.51,0.00019178,2]
[360881106,1747097446570,-400.0,0.00019178,2]
[360881107,1747097446580,-832.83,0.00019178,2]
[360881109,1747097446589,-71.85059639,0.00019178,2]
[360881112,1747097446633,-328.14940361,0.00019178,2]
[360881114,1747097446643,-229.669725,0.00019178,2]
[360881116,1747097446652,-400.0,0.00019178,2]
[360881117,1747097446661,-98.38644115,0.00019178,2]
[360881119,1747098073260,-1000.000001,0.00013,2]
[360881120,1747098073284,-352.189999,0.00013,2]
[360881122,1747098430134,-147.810001,0.00013,2]
[360881123,1747098430160,-500.0,0.00013,2]
[360881124,1747098430181,-355.97121483,0.00013,2]
[360881125,1747098430201,-273.71731231,0.00013699,2]
[360881126,1747098449124,-24.99537069,0.00013699,2]
[360881127,1747098449145,-377.4348455,0.000149,2]
[360881128,1747098450086,-211.59747907,0.000149,2]
[360881136,1747098566207,-141.69767543,0.000149,2]
[360881137,1747098566227,-150.0,0.00016,2]
[360881138,1747098566247,-1733.92077294,0.00016531,2]
[360881139,1747098566267,-404.0,0.00016576,2]
[360881140,1747098566289,-300.0,0.00016629,2]
[360881141,1747098566309,-500.0,0.0001663,2]
[360881142,1747098566328,-500.0,0.0001663,2]
[360881143,1747098566348,-363.73639013,0.0001663,2]
[360881144,1747098566367,-348.02888724,0.0001663,2]
[360881145,1747098566388,-500.0,0.0001663,2]
[360881146,1747098566409,-500.0,0.0001663,2]
[360881147,1747098566431,-500.0,0.0001663,2]
[360881148,1747098566450,-458.31752559,0.0001663,2]
[360881149,1747098566470,-500.0,0.0001663,2]
[360881150,1747098566491,-500.0,0.0001663,2]
[360881151,1747098566510,-500.0,0.0001663,2]
[360881152,1747098566530,-500.0,0.0001663,2]
[360881153,1747098566551,-500.0,0.0001663,2]
[360881154,1747098566571,-500.0,0.0001663,2]
[360881155,1747098566594,-500.0,0.0001663,2]
[360881156,1747098566614,-500.0,0.0001663,2]
[360881157,1747098566636,-500.0,0.0001663,2]
[360881158,1747098566656,-500.0,0.0001663,2]
[360881159,1747098566680,-500.0,0.0001663,2]
[360881160,1747098566699,-164.38433932,0.0001663,2]
[360881161,1747098566720,-553.8403729,0.0001663,2]
[360881162,1747098566742,-500.0,0.0001663,2]
[360881163,1747098566763,-500.0,0.0001663,2]
[360881164,1747098566786,-500.0,0.0001663,2]
[360881165,1747098566806,-525.40839368,0.0001663,2]
[360881166,1747098566826,-500.0,0.0001663,2]
[360881167,1747098566846,-644.57243707,0.0001663,2]
[360881168,1747098566868,-500.0,0.0001663,2]
[360881169,1747098566887,-396.94468604,0.0001663,2]
[360881170,1747098566907,-500.0,0.0001663,2]
[360881171,1747098566927,-500.0,0.0001663,2]
[360881172,1747098566948,-500.0,0.0001663,2]
[360881173,1747098566971,-500.0,0.0001663,2]
[360881174,1747098566992,-500.0,0.0001663,2]
[360881175,1747098567011,-500.0,0.0001663,2]
[360881176,1747098567033,-500.0,0.0001663,2]
[360881177,1747098567053,-500.0,0.0001663,2]
[360881178,1747098567073,-500.0,0.0001663,2]
[360881179,1747098567094,-500.0,0.0001663,2]
[360881180,1747098567115,-500.0,0.0001663,2]
[360881181,1747098567135,-500.0,0.0001663,2]
[360881182,1747098567155,-500.0,0.0001663,2]
[360881183,1747098567175,-500.0,0.0001663,2]
[360881184,1747098567195,-500.0,0.0001663,2]
[360881185,1747098567218,-500.0,0.0001663,2]
[360881186,1747098567241,-500.0,0.0001663,2]
[360881187,1747098567262,-500.0,0.0001663,2]
[360881188,1747098567286,-500.0,0.0001663,2]
[360881189,1747098567309,-500.0,0.0001663,2]
[360881190,1747098567330,-500.0,0.0001663,2]
[360881191,1747098567352,-500.0,0.0001663,2]
[360881192,1747098567374,-500.0,0.0001663,2]
[360881193,1747098567396,-500.0,0.0001663,2]
[360881194,1747098567417,-500.0,0.0001663,2]
[360881195,1747098567437,-500.0,0.0001663,2]
[360881196,1747098567459,-500.0,0.0001663,2]
[360881197,1747098567480,-500.0,0.0001663,2]
[360881198,1747098567501,-500.0,0.0001663,2]
[360881199,1747098567522,-500.0,0.0001663,2]
[360881200,1747098567542,-500.0,0.0001663,2]
[360881201,1747098567563,-500.0,0.0001663,2]
[360881202,1747098567584,-500.0,0.0001663,2]
[360881203,1747098567607,-500.0,0.0001663,2]
[360881204,1747098567629,-500.0,0.0001663,2]
[360881205,1747098567651,-500.0,0.0001663,2]
[360881206,1747098567673,-500.0,0.0001663,2]
[360881207,1747098567695,-500.0,0.0001663,2]
[360881208,1747098567716,-500.0,0.0001663,2]
[360881209,1747098567737,-354.8328962,0.0001663,2]
[360881244,1747098632024,-657.66,0.000149,2]
[360881245,1747098632035,-300.0,0.00016629,2]
[360881246,1747098632045,-300.0,0.00016629,2]
[360881247,1747098632056,-145.1671038,0.0001663,2]
[360881248,1747098632066,-500.0,0.0001663,2]
[360881250,1747098632076,-500.0,0.0001663,2]
[360881253,1747098632087,-500.0,0.0001663,2]
[360881255,1747098632099,-500.0,0.0001663,2]
[360881257,1747098632110,-500.0,0.0001663,2]
[360881258,1747098632120,-358.55808106,0.0001663,2]
[360881259,1747098632133,-141.44191894,0.0001663,2]
[360881260,1747098632144,-500.0,0.0001663,2]
[360881261,1747098632154,-500.0,0.0001663,2]
[360881263,1747098632165,-500.0,0.0001663,2]
[360881265,1747098632175,-500.0,0.0001663,2]
[360881267,1747098632185,-500.0,0.0001663,2]
[360881269,1747098632195,-500.0,0.0001663,2]
[360881271,1747098632205,-500.0,0.0001663,2]
[360881273,1747098632215,-500.0,0.0001663,2]
[360881276,1747098632226,-500.0,0.0001663,2]
[360881278,1747098632236,-500.0,0.0001663,2]
[360881280,1747098632247,-500.0,0.0001663,2]
[360881282,1747098632257,-500.0,0.0001663,2]
[360881284,1747098632268,-500.0,0.0001663,2]
[360881286,1747098632278,-500.0,0.0001663,2]
[360881288,1747098632289,-438.00719564,0.0001663,2]
[360881290,1747098632299,-500.0,0.0001663,2]
[360881293,1747098632310,-500.0,0.0001663,2]
[360881295,1747098632320,-500.0,0.0001663,2]
[360881297,1747098632330,-500.0,0.0001663,2]
[360881299,1747098632340,-500.0,0.0001663,2]
[360881301,1747098632352,-500.0,0.0001663,2]
[360881303,1747098632362,-500.0,0.0001663,2]
[360881305,1747098632372,-500.0,0.0001663,2]
[360881307,1747098632383,-500.0,0.0001663,2]
[360881309,1747098632393,-500.0,0.0001663,2]
[360881311,1747098632403,-500.0,0.0001663,2]
[360881313,1747098632413,-500.0,0.0001663,2]
[360881315,1747098632423,-500.0,0.0001663,2]
[360881317,1747098632433,-500.0,0.0001663,2]
[360881318,1747098632444,-500.0,0.0001663,2]
[360881319,1747098632454,-500.0,0.0001663,2]
[360881320,1747098632464,-500.0,0.0001663,2]
[360881321,1747098632474,-500.0,0.0001663,2]
[360881322,1747098632485,-500.0,0.0001663,2]
[360881323,1747098632496,-500.0,0.0001663,2]
[360881324,1747098632506,-500.0,0.0001663,2]
[360881325,1747098632517,-500.0,0.0001663,2]
[360881326,1747098632527,-650.0,0.0001663,2]
[360881327,1747098632538,-500.0,0.0001663,2]
[360881328,1747098632549,-500.0,0.0001663,2]
[360881329,1747098632559,-500.0,0.0001663,2]
[360881330,1747098632570,-500.0,0.0001663,2]
[360881331,1747098632582,-500.0,0.0001663,2]
[360881332,1747098632593,-500.0,0.0001663,2]
[360881333,1747098632603,-500.0,0.0001663,2]
[360881334,1747098632615,-500.0,0.0001663,2]
[360881335,1747098632625,-11759.33249188,0.0001663,2]
[360881336,1747098632636,-286.10796891,0.00016632,2]
[360881337,1747098632646,-546.0,0.00016633,2]
[360881338,1747098632657,-2239.0,0.00016633,2]
[360881339,1747098632668,-708.0,0.00016633,2]
[360881340,1747098632678,-500.328,0.00016989,2]
[360881341,1747098632700,-160.0,0.00017872,2]
[360881342,1747098632717,-160.0,0.00017872,2]
[360881343,1747098632727,-212.17074216,0.00017872,2]
[360881344,1747098632738,-160.0,0.00017872,2]
[360881345,1747098632748,-160.0,0.00017873,2]
[360881346,1747098632758,-160.0,0.00017873,2]
[360881347,1747098632768,-7711.52769135,0.000179,2]
[360881348,1747098632778,-1100.0,0.00018068,2]
[360881349,1747098632790,-7711.5276913,0.00018141,2]
[360881350,1747098632800,-420.0,0.00018169,2]
[360881351,1747098632812,-7711.5276913,0.00018383,2]
[360881352,1747098632823,-214.8,0.00018486,2]
[360881353,1747098632833,-3592.60643625,0.000185,2]
[360881354,1747098632843,-632.779628,0.00018578,7]
[360881355,1747098632853,-205.0,0.000186,2]
[360881356,1747098632864,-7711.5276913,0.00018624,2]
[360881357,1747098632874,-1352.18,0.000188,6]
[360881358,1747098632885,-7711.5276913,0.00018866,2]
[360881359,1747098632897,-269.0,0.000189,2]
[360881360,1747098632907,-461.50534603,0.000189,2]
[360881361,1747098632918,-205.0,0.0001891,2]
[360881362,1747098632928,-4016.90335862,0.00019,2]
[360881363,1747098632938,-2345.22574854,0.00019,2]
[360881364,1747098632948,-2345.22574852,0.0001902,2]
[360881365,1747098632958,-2345.22574852,0.00019039,2]
[360881366,1747098632968,-736.67,0.00019058,3]
[360881367,1747098632978,-368.33,0.00019058,3]
[360881368,1747098632988,-2345.22574852,0.00019059,2]
[360881369,1747098632998,-5893.34,0.00019068,3]
[360881370,1747098633008,-2946.67,0.00019068,3]
[360881371,1747098633018,-1473.34,0.00019068,3]
[360881372,1747098633028,-184.17,0.00019068,3]
[360881373,1747098633038,-552.52,0.00019068,3]
[360881374,1747098633048,-12623.54026388,0.00019068,3]
[360881375,1747098633059,-160.0,0.00019068,3]
[360881376,1747098633069,-2345.22574852,0.00019078,2]
[360881377,1747098633079,-24391.03285347,0.00019078,2]
[360881378,1747098633088,-190.0,0.000191,2]
[360881379,1747098633099,-191.0,0.000191,2]
[360881380,1747098633110,-151.0,0.000191,2]
[360881381,1747098633120,-151.0,0.000191,2]
[360881382,1747098633130,-151.0,0.000191,2]
[360881383,1747098633141,-151.0,0.000191,2]
[360881384,1747098633151,-151.0,0.000191,2]
[360881385,1747098633161,-151.0,0.000191,2]
[360881386,1747098633171,-151.0,0.000191,2]
[360881387,1747098633181,-151.0,0.000191,2]
[360881388,1747098633191,-7711.5276913,0.00019107,2]
[360881389,1747098633202,-500.0,0.0001914,2]
[360881390,1747098633212,-160.0,0.00019145,2]
[360881391,1747098633222,-997.78101552,0.00019146,2]
[360881392,1747098633232,-160.0,0.00019146,2]
[360881393,1747098633243,-422.20096692,0.00019146,2]
[360881394,1747098633253,-160.0,0.00019146,2]
[360881395,1747098633263,-160.0,0.00019146,2]
[360881396,1747098633273,-12623.54026388,0.00019146,2]
[360881397,1747098633283,-500.0,0.00019149,2]
[360881398,1747098633293,-212.17074216,0.00019163,3]
[360881399,1747098633303,-997.78101552,0.00019163,3]
[360881400,1747098633313,-1100.0,0.00019164,2]
[360881401,1747098633323,-500.0,0.00019173,2]
[360881402,1747098633334,-500.0,0.00019173,2]
[360881403,1747098633345,-1000.0,0.00019173,2]
[360881404,1747098633355,-500.0,0.00019173,2]
[360881405,1747098633365,-381.59797861,0.00019173,2]
[360881406,1747098633375,-500.0,0.00019173,2]
[360881407,1747098633385,-500.0,0.00019173,2]
[360881408,1747098633395,-184.86439987,0.00019173,2]
[360881409,1747098633405,-500.0,0.00019173,2]
[360881410,1747098633415,-331.91109397,0.00019173,2]
[360881411,1747098633425,-500.0,0.00019173,2]
[360881412,1747098633435,-500.0,0.00019173,2]
[360881413,1747098633445,-500.0,0.00019173,2]
[360881414,1747098633455,-500.0,0.00019173,2]
[360881415,1747098633466,-500.0,0.00019173,2]
[360881416,1747098633476,-500.0,0.00019173,2]
[360881417,1747098633487,-500.0,0.00019173,2]
[360881418,1747098633767,-500.0,0.00019173,2]
[360881419,1747098633778,-500.0,0.00019173,2]
[360881420,1747098633789,-500.0,0.00019173,2]
[360881421,1747098633799,-500.0,0.00019173,2]
[360881422,1747098633809,-500.0,0.00019173,2]
[360881423,1747098633819,-512.47820784,0.00019173,2]
[360881424,1747098633829,-5851.33922255,0.00019178,2]
[360881425,1747098633840,-244.92523963,0.00019178,3]
[360881426,1747098633853,-299.675011,0.00019178,2]
[360881427,1747098633863,-151.0,0.00019178,2]
[360881428,1747098633873,-151.0,0.00019178,2]
[360881429,1747098633883,-151.0,0.00019178,2]
[360881430,1747098633892,-207.72734375,0.00019178,2]
[360881431,1747098633903,-400.0,0.00019178,2]
[360881432,1747098633913,-400.0,0.00019178,2]
[360881433,1747098633923,-151.0,0.00019178,2]
[360881434,1747098633933,-174.849355,0.00019178,2]
[360881435,1747098633944,-400.0,0.00019178,2]
[360881436,1747098633953,-400.0,0.00019178,2]
[360881437,1747098633963,-469.10788,0.00019178,2]
[360881438,1747098633973,-469.10788,0.00019178,2]
[360881439,1747098633983,-151.0,0.00019178,2]
[360881440,1747098633993,-151.0,0.00019178,2]
[360881441,1747098634002,-151.0,0.00019178,2]
[360881442,1747098634012,-151.0,0.00019178,2]
[360881443,1747098634022,-151.0,0.00019178,2]
[360881444,1747098634031,-151.0,0.00019178,2]
[360881445,1747098634041,-151.0,0.00019178,2]
[360881446,1747098634051,-151.0,0.00019178,2]
[360881447,1747098634061,-151.0,0.00019178,2]
[360881448,1747098634071,-400.0,0.00019178,2]
[360881449,1747098634080,-440.3,0.00019178,2]
[360881450,1747098634090,-151.0,0.00019178,2]
[360881451,1747098634102,-151.0,0.00019178,2]
[360881452,1747098634111,-682.97,0.00019178,2]
[360881453,1747098634121,-400.0,0.00019178,2]
[360881454,1747098634130,-400.0,0.00019178,2]
[360881455,1747098634140,-400.0,0.00019178,2]
[360881456,1747098634149,-400.0,0.00019178,2]
[360881457,1747098634159,-400.0,0.00019178,2]
[360881458,1747098634169,-400.0,0.00019178,2]
[360881459,1747098634178,-400.0,0.00019178,2]
[360881460,1747098634189,-400.0,0.00019178,2]
[360881461,1747098634199,-206.79581561,0.00019178,2]
[360881462,1747098634208,-856.75,0.00019178,2]
[360881463,1747098634217,-400.0,0.00019178,2]
[360881464,1747098634227,-400.0,0.00019178,2]
[360881465,1747098634236,-400.0,0.00019178,2]
[360881466,1747098634245,-400.0,0.00019178,2]
[360881467,1747098634255,-400.0,0.00019178,2]
[360881468,1747098634264,-1526.51,0.00019178,2]
[360881469,1747098634274,-400.0,0.00019178,2]
[360881470,1747098634283,-151.0,0.00019178,2]
[360881471,1747098634293,-355.87401664,0.00019178,2]
[360881472,1747098634302,-151.0,0.00019178,2]
[360881473,1747098634312,-151.0,0.00019178,2]
[360881474,1747098634321,-151.0,0.00019178,2]
[360881475,1747098634331,-400.0,0.00019178,2]
[360881476,1747098634340,-400.0,0.00019178,2]
[360881477,1747098634353,-445.26,0.00019178,2]
[360881478,1747098634363,-2214.43,0.00019178,2]
[360881479,1747098634374,-400.0,0.00019178,2]
[360881480,1747098634385,-1066.25,0.00019178,2]
[360881481,1747098634395,-400.0,0.00019178,2]
[360881482,1747098634405,-400.0,0.00019178,2]
[360881483,1747098634415,-151.0,0.00019178,2]
[360881484,1747098634425,-400.0,0.00019178,2]
[360881485,1747098634434,-400.0,0.00019178,2]
[360881486,1747098634444,-400.0,0.00019178,2]
[360881487,1747098634454,-786.06,0.00019178,2]
[360881488,1747098634463,-400.0,0.00019178,2]
[360881489,1747098634477,-443.19,0.00019178,2]
[360881490,1747098634486,-1353.9,0.00019178,2]
[360881491,1747098634496,-400.0,0.00019178,2]
[360881492,1747098634506,-400.0,0.00019178,2]
[360881493,1747098634515,-407.31,0.00019178,2]
[360881494,1747098634524,-400.0,0.00019178,2]
[360881495,1747098634533,-400.0,0.00019178,2]
[360881496,1747098634543,-400.0,0.00019178,2]
[360881497,1747098634552,-400.0,0.00019178,2]
[360881498,1747098634562,-400.0,0.00019178,2]
[360881499,1747098634573,-400.0,0.00019178,2]
[360881500,1747098634583,-400.0,0.00019178,2]
[360881501,1747098634594,-1599.34,0.00019178,2]
[360881502,1747098634603,-400.0,0.00019178,2]
[360881503,1747098634616,-400.0,0.00019178,2]
[360881504,1747098634626,-285.682538,0.00019178,2]
[360881505,1747098634635,-285.682538,0.00019178,2]
[360881506,1747098634645,-285.682538,0.00019178,2]
[360881507,1747098634657,-285.682538,0.00019178,2]
[360881508,1747098634666,-400.0,0.00019178,2]
[360881509,1747098634677,-400.0,0.00019178,2]
[360881510,1747098634688,-285.682538,0.00019178,2]
[360881511,1747098634699,-285.682538,0.00019178,2]
[360881512,1747098634710,-285.682538,0.00019178,2]
[360881513,1747098634720,-285.682538,0.00019178,2]
[360881514,1747098634730,-400.0,0.00019178,2]
[360881515,1747098634739,-402.7164939,0.00019178,2]
[360881516,1747098634748,-400.0,0.00019178,2]
[360881517,1747098634757,-400.0,0.00019178,2]
[360881518,1747098634767,-400.0,0.00019178,2]
[360881519,1747098634776,-579.58,0.00019178,2]
[360881520,1747098634785,-183.62460969,0.00019178,2]
[360881521,1747098634795,-400.0,0.00019178,2]
[360881522,1747098634805,-712.39,0.00019178,2]
[360881523,1747098634814,-352.86219687,0.00019178,2]
[360881524,1747098634823,-629.83,0.00019178,2]
[360881525,1747098634832,-664.51,0.00019178,2]
[360881526,1747098634842,-400.0,0.00019178,2]
[360881527,1747098634851,-703.05,0.00019178,2]
[360881528,1747098634861,-400.0,0.00019178,2]
[360881529,1747098634870,-400.0,0.00019178,2]
[360881530,1747098634879,-836.61,0.00019178,2]
[360881531,1747098634888,-400.0,0.00019178,2]
[360881532,1747098634897,-503.23081399,0.00019178,2]
[360881533,1747098634906,-410.87157376,0.00019178,2]
[360881534,1747098634915,-713.44,0.00019178,2]
[360881535,1747098634924,-151.0,0.00019178,2]
[360881536,1747098634933,-151.0,0.00019178,2]
[360881537,1747098634943,-151.0,0.00019178,2]
[360881538,1747098634952,-151.0,0.00019178,2]
[360881539,1747098634962,-418.74,0.00019178,2]
[360881540,1747098634971,-400.0,0.00019178,2]
[360881541,1747098634980,-461.7,0.00019178,2]
[360881542,1747098634990,-400.0,0.00019178,2]
[360881543,1747098634999,-400.0,0.00019178,2]
[360881544,1747098635008,-400.0,0.00019178,2]
[360881545,1747098635018,-400.0,0.00019178,2]
[360881546,1747098635027,-400.0,0.00019178,2]
[360881547,1747098635036,-151.0,0.00019178,2]
[360881548,1747098635045,-151.0,0.00019178,2]
[360881549,1747098635054,-151.0,0.00019178,2]
[360881550,1747098635063,-151.0,0.00019178,2]
[360881551,1747098635072,-151.851115,0.00019178,2]
[360881552,1747098635081,-151.851115,0.00019178,2]
[360881553,1747098635091,-151.851115,0.00019178,2]
[360881554,1747098635101,-151.851115,0.00019178,2]
[360881555,1747098635111,-400.0,0.00019178,2]
[360881556,1747098635120,-400.0,0.00019178,2]
[360881557,1747098635129,-151.851115,0.00019178,2]
[360881558,1747098635138,-151.851115,0.00019178,2]
[360881559,1747098635147,-522.0,0.00019178,2]
[360881560,1747098635157,-151.851115,0.00019178,2]
[360881561,1747098635166,-400.0,0.00019178,2]
[360881562,1747098635175,-151.851115,0.00019178,2]
[360881563,1747098635184,-400.0,0.00019178,2]
[360881564,1747098635194,-404.94,0.00019178,2]
[360881565,1747098635203,-400.0,0.00019178,2]
[360881566,1747098635212,-151.0,0.00019178,2]
[360881567,1747098635221,-151.0,0.00019178,2]
[360881568,1747098635231,-400.0,0.00019178,2]
[360881569,1747098635240,-400.0,0.00019178,2]
[360881570,1747098635249,-151.0,0.00019178,2]
[360881571,1747098635259,-206.702753,0.00019178,2]
[360881572,1747098635268,-206.702753,0.00019178,2]
[360881573,1747098635277,-206.702753,0.00019178,2]
[360881574,1747098635286,-206.702753,0.00019178,2]
[360881575,1747098635295,-400.0,0.00019178,2]
[360881576,1747098635305,-400.0,0.00019178,2]
[360881577,1747098635314,-486.92,0.00019178,2]
[360881578,1747098635323,-206.702753,0.00019178,2]
[360881579,1747098635333,-206.702753,0.00019178,2]
[360881580,1747098635342,-206.702753,0.00019178,2]
[360881581,1747098635352,-206.702753,0.00019178,2]
[360881582,1747098635362,-400.0,0.00019178,2]
[360881583,1747098635371,-470.33,0.00019178,2]
[360881584,1747098635381,-400.0,0.00019178,2]
[360881585,1747098635391,-400.0,0.00019178,2]
[360881586,1747098635401,-400.0,0.00019178,2]
[360881587,1747098635410,-400.0,0.00019178,2]
[360881588,1747098635420,-400.0,0.00019178,2]
[360881589,1747098635430,-690.29,0.00019178,2]
[360881590,1747098635439,-400.0,0.00019178,2]
[360881591,1747098635448,-1021.65,0.00019178,2]
[360881592,1747098635458,-400.0,0.00019178,2]
[360881593,1747098635467,-151.0,0.00019178,2]
[360881594,1747098635477,-151.0,0.00019178,2]
[360881595,1747098635486,-151.0,0.00019178,2]
[360881596,1747098635496,-172.426071,0.00019178,2]
[360881597,1747098635505,-151.0,0.00019178,2]
[360881598,1747098635514,-151.0,0.00019178,2]
[360881599,1747098635523,-187.892934,0.00019178,2]
[360881600,1747098635534,-400.0,0.00019178,2]
[360881601,1747098635543,-400.0,0.00019178,2]
[360881602,1747098635552,-711.23,0.00019178,2]
[360881603,1747098635562,-567.33,0.00019178,2]
[360881604,1747098635571,-400.0,0.00019178,2]
[360881605,1747098635580,-400.0,0.00019178,2]
[360881606,1747098635589,-400.0,0.00019178,2]
[360881607,1747098635606,-400.0,0.00019178,2]
[360881608,1747098635618,-523.45,0.00019178,2]
[360881609,1747098635628,-404.9637119,0.00019178,2]
[360881610,1747098635637,-400.0,0.00019178,2]
[360881611,1747098635647,-400.0,0.00019178,2]
[360881612,1747098635657,-400.0,0.00019178,2]
[360881613,1747098635666,-400.0,0.00019178,2]
[360881614,1747098635675,-1967.01,0.00019178,2]
[360881615,1747098635687,-432.89,0.00019178,2]
[360881616,1747098635696,-1235.04,0.00019178,2]
[360881617,1747098635705,-400.0,0.00019178,2]
[360881618,1747098635714,-1503.78,0.00019178,2]
[360881619,1747098635723,-151.0,0.00019178,2]
[360881620,1747098635733,-151.0,0.00019178,2]
[360881621,1747098635742,-400.0,0.00019178,2]
[360881622,1747098635751,-151.0,0.00019178,2]
[360881623,1747098635760,-400.0,0.00019178,2]
[360881624,1747098635769,-151.0,0.00019178,2]
[360881625,1747098635778,-400.0,0.00019178,2]
[360881626,1747098635788,-400.0,0.00019178,2]
[360881627,1747098635797,-400.0,0.00019178,2]
[360881628,1747098635806,-400.0,0.00019178,2]
[360881629,1747098635815,-408.91641247,0.00019178,2]
[360881630,1747098635825,-505.38403899,0.00019178,2]
[360881631,1747098635834,-400.0,0.00019178,2]
[360881632,1747098635843,-624.49,0.00019178,2]
[360881633,1747098635852,-561.08,0.00019178,2]
[360881634,1747098635861,-2397.02,0.00019178,2]
[360881635,1747098635871,-400.67,0.00019178,2]
[360881636,1747098635880,-400.0,0.00019178,2]
[360881637,1747098635889,-151.0,0.00019178,2]
[360881638,1747098635899,-400.0,0.00019178,2]
[360881639,1747098635908,-400.0,0.00019178,2]
[360881640,1747098635918,-151.0,0.00019178,2]
[360881641,1747098635927,-400.0,0.00019178,2]
[360881642,1747098635936,-151.0,0.00019178,2]
[360881643,1747098635945,-1746.08,0.00019178,2]
[360881644,1747098635955,-151.0,0.00019178,2]
[360881645,1747098635964,-400.0,0.00019178,2]
[360881646,1747098635974,-1257.12,0.00019178,2]
[360881647,1747098635983,-225.784252,0.00019178,2]
[360881648,1747098635992,-450.22,0.00019178,2]
[360881649,1747098636002,-400.0,0.00019178,2]
[360881650,1747098636011,-400.0,0.00019178,2]
[360881651,1747098636021,-691.02,0.00019178,2]
[360881652,1747098636030,-400.0,0.00019178,2]
[360881653,1747098636039,-411.86,0.00019178,2]
[360881654,1747098636048,-1116.89,0.00019178,2]
[360881655,1747098636057,-645.32,0.00019178,2]
[360881656,1747098636066,-400.0,0.00019178,2]
[360881657,1747098636075,-400.0,0.00019178,2]
[360881658,1747098636083,-400.0,0.00019178,2]
[360881659,1747098636093,-400.0,0.00019178,2]
[360881660,1747098636102,-376.65670936,0.00019178,2]
[360881661,1747098636111,-400.0,0.00019178,2]
[360881662,1747098636120,-400.0,0.00019178,2]